lending/lending_fUSD_20240110
["ID","MTS","AMOUNT","RATE_DAILY","PERIOD"]
[311058789,1704891122336,-1618.49,0.00032054,2]
[311058790,1704891122346,-696.22,0.00032054,2]
[311058791,1704891122357,-8919.11,0.00032054,2]
[311058792,1704891122369,-500.0,0.00032054,2]
[311058793,1704891122381,-1000.0,0.00032054,2]
[311058794,1704891122392,-813.18,0.00032054,2]
[311058795,1704891122407,-500.0,0.00032054,2]
[311058796,1704891122418,-916.52,0.00032054,2]
[311058797,1704891122428,-484.51,0.00032054,2]
[311058798,1704891122438,-500.0,0.00032054,2]
[311058799,1704891122448,-500.0,0.00032054,2]
[311058800,1704891122458,-500.0,0.00032054,2]
[311058801,1704891122469,-1010.96,0.00032054,2]
[311058802,1704891122479,-500.0,0.00032054,2]
[311058803,1704891122491,-500.0,0.00032054,2]
[311058804,1704891122501,-669.44,0.00032054,2]
[311058805,1704891122512,-1654.81,0.00032054,2]
[311058806,1704891122523,-895.64,0.00032054,2]
[311058807,1704891122534,-5719.09,0.00032054,2]
[311058808,1704891122544,-500.0,0.00032054,2]
[311058809,1704891122555,-500.0,0.00032054,2]
[311058810,1704891122566,-3241.68,0.00032054,2]
[311058811,1704891122576,-2147.06,0.00032054,2]
[311058812,1704891122587,-500.0,0.00032054,2]
[311058813,1704891122598,-4583.07,0.00032054,2]
[311058814,1704891122609,-4104.47,0.00032054,2]
[311058815,1704891122620,-500.0,0.00032054,2]
[311058816,1704891122631,-1135.8,0.00032054,2]
[311058817,1704891122642,-4864.49,0.00032054,2]
[311058818,1704891122656,-1172.6,0.00032054,2]
[311058819,1704891122667,-1306.53,0.00032054,2]
[311058820,1704891122678,-500.0,0.00032054,2]
[311058821,1704891122689,-605.42,0.00032054,2]
[311058822,1704891122700,-500.0,0.00032054,2]
[311058823,1704891122711,-613.66,0.00032054,2]
[311058824,1704891122721,-1839.88,0.00032054,2]
[311058825,1704891122732,-3152.91,0.00032054,2]
[311058826,1704891122743,-500.0,0.00032054,2]
[311058827,1704891122753,-848.46,0.00032054,2]
[311058828,1704891122763,-1217.95,0.00032054,2]
[311058829,1704891122774,-3087.19,0.00032054,2]
[311058830,1704891122785,-1973.9,0.00032054,2]
[311058831,1704891122795,-1107.32,0.00032054,2]
[311058832,1704891122806,-1243.05,0.00032054,2]
[311058833,1704891122817,-500.0,0.00032054,2]
[311058834,1704891122827,-500.0,0.00032054,2]
[311058835,1704891122838,-998.38,0.00032054,2]
[311058836,1704891122849,-1702.03,0.00032054,2]
[311058837,1704891122860,-500.0,0.00032054,2]
[311058838,1704891122870,-515.72,0.00032054,2]
[311058839,1704891122881,-500.0,0.00032054,2]
[311058840,1704891122891,-3061.74,0.00032054,2]
[311058841,1704891122905,-500.0,0.00032054,2]
[311058842,1704891122915,-3064.76,0.00032054,2]
[311058843,1704891122925,-500.0,0.00032054,2]
[311058844,1704891122938,-996.01,0.00032054,2]
[311058845,1704891123182,-1068.18,0.00032054,2]
[311058846,1704891123199,-1153.97,0.00032054,2]
[311058847,1704891123208,-6469.31,0.00032054,2]
[311058848,1704891123218,-171.25274414,0.00032054,2]
[311058849,1704891123229,-500.0,0.00032054,2]
[311058850,1704891123239,-1516.45,0.00032054,2]
[311058851,1704891123249,-20572.41,0.00032054,2]
[311058852,1704891123259,-835.36,0.00032054,2]
[311058853,1704891123269,-508.77,0.00032054,2]
[311058854,1704891123280,-876.85,0.00032054,2]
[311058855,1704891123294,-1211.96,0.00032054,2]
[311058856,1704891123304,-8935.6,0.00032054,2]
[311058857,1704891123315,-500.0,0.00032054,2]
[311058858,1704891123329,-749.11,0.00032054,2]
[311058859,1704891123339,-500.0,0.00032054,2]
[311058860,1704891123350,-500.0,0.00032054,2]
[311058861,1704891123360,-3428.01,0.00032054,2]
[311058862,1704891123370,-500.0,0.00032054,2]
[311058863,1704891123379,-1411.74,0.00032054,2]
[311058864,1704891123389,-51777.21,0.00032054,2]
[311058865,1704891123401,-500.0,0.00032054,2]
[311058866,1704891123411,-2414.62,0.00032054,2]
[311058867,1704891123421,-28702.52,0.00032054,2]
[311058868,1704891123430,-1449.33,0.00032054,2]
[311058869,1704891123440,-500.0,0.00032054,2]
[311058870,1704891123449,-729.81,0.00032054,2]
[311058871,1704891123459,-1741.33,0.00032054,2]
[311058872,1704891123469,-500.0,0.00032054,2]
[311058873,1704891123479,-500.0,0.00032054,2]
[311058874,1704891123490,-18242.51,0.00032054,2]
[311058875,1704891123499,-982.47,0.00032054,2]
[311058876,1704891123509,-3044.12,0.00032054,2]
[311058877,1704891123520,-7322.32,0.00032054,2]
[311058878,1704891123530,-1198.42,0.00032054,2]
[311058879,1704891123540,-883.98,0.00032054,2]
[311058880,1704891123550,-669.65,0.00032054,2]
[311058881,1704891123560,-936.43,0.00032054,2]
[311058882,1704891123570,-1931.34,0.00032054,2]
[311058883,1704891123580,-500.0,0.00032054,2]
[311058884,1704891123590,-596.34,0.00032054,2]
[311058885,1704891123600,-5311.52,0.00032054,2]
[311058886,1704891123609,-591.04,0.00032054,2]
[311058887,1704891123619,-756.46,0.00032054,2]
[311058888,1704891123629,-1716.44,0.00032054,2]
[311058889,1704891123639,-500.0,0.00032054,2]
[311058890,1704891123650,-1935.34,0.00032054,2]
[311058891,1704891123661,-1335.68,0.00032054,2]
[311058892,1704891123671,-896.69,0.00032054,2]
[311058893,1704891123681,-11436.48,0.00032054,2]
[311058894,1704891123692,-630.3,0.00032054,2]
[311058895,1704891123701,-5273.56,0.00032054,2]
[311058896,1704891123711,-7205.25,0.00032054,2]
[311058897,1704891123721,-738.84,0.00032054,2]
[311058898,1704891123731,-500.0,0.00032054,2]
[311058899,1704891123741,-1192.7,0.00032054,2]
[311058900,1704891123751,-962.89,0.00032054,2]
[311058901,1704891123761,-717.02,0.00032054,2]
[311058902,1704891123770,-1285.43,0.00032054,2]
[311058903,1704891123781,-6876.74,0.00032054,2]
[311058904,1704891123791,-6606.78,0.00032054,2]
[311058905,1704891123801,-1732.97,0.00032054,2]
[311058906,1704891123811,-7057.36,0.00032054,2]
[311058907,1704891123821,-500.0,0.00032054,2]
[311058908,1704891123832,-2245.33,0.00032054,2]
[311058909,1704891123842,-1567.49,0.00032054,2]
[311058910,1704891123852,-790.0,0.00032054,2]
[311058911,1704891123862,-932.57,0.00032054,2]
[311058912,1704891123872,-2499.19,0.00032054,2]
[311058913,1704891123882,-199.38643931,0.00032054,2]
[311058914,1704891123892,-1333.7,0.00032054,2]
[311058915,1704891123905,-2921.42,0.00032054,2]
[311058916,1704891123915,-4128.32,0.00032054,2]
[311058917,1704891123926,-500.0,0.00032054,2]
[311058918,1704891123936,-783.63,0.00032054,2]
[311058919,1704891123946,-682.44,0.00032054,2]
[311058920,1704891123955,-1293.22,0.00032054,2]
[311058921,1704891123965,-1047.14,0.00032054,2]
[311058922,1704891123975,-3328.34,0.00032054,2]
[311058923,1704891123986,-953.47,0.00032054,2]
[311058924,1704891123996,-2153.92,0.00032054,2]
[311058925,1704891124006,-2896.37,0.00032054,2]
[311058926,1704891124016,-668.72,0.00032054,2]
[311058927,1704891124025,-3025.67,0.00032054,2]
[311058928,1704891124035,-1350.56,0.00032054,2]
[311058929,1704891124045,-2341.12,0.00032054,2]
[311058930,1704891124054,-500.0,0.00032054,2]
[311058931,1704891124064,-2098.62,0.00032054,2]
[311058932,1704891124074,-703.2,0.00032054,2]
[311058933,1704891124084,-1930.74,0.00032054,2]
[311058934,1704891124094,-500.0,0.00032054,2]
[311058935,1704891124105,-500.0,0.00032054,2]
[311058936,1704891124115,-5339.67,0.00032054,2]
[311058937,1704891124125,-500.0,0.00032054,2]
[311058938,1704891124135,-503.67,0.00032054,2]
[311058939,1704891124145,-4486.53,0.00032054,2]
[311058940,1704891124157,-1093.38,0.00032054,2]
[311058941,1704891124167,-3990.83,0.00032054,2]
[311058942,1704891124181,-843.02,0.00032054,2]
[311058943,1704891124192,-3222.77,0.00032054,2]
[311058944,1704891124202,-915.67,0.00032054,2]
[311058945,1704891124212,-500.0,0.00032054,2]
[311058946,1704891124223,-6104.89,0.00032054,2]
[311058947,1704891124233,-500.0,0.00032054,2]
[311058948,1704891124243,-723.37,0.00032054,2]
[311058949,1704891124253,-500.0,0.00032054,2]
[311058950,1704891124263,-500.0,0.00032054,2]
[311058951,1704891124273,-1149.9,0.00032054,2]
[311058952,1704891124284,-500.0,0.00032054,2]
[311058953,1704891124294,-5798.03,0.00032054,2]
[311058954,1704891124304,-521.51913693,0.00032054,2]
[311058955,1704891124317,-4625.49,0.00032054,2]
[311058956,1704891124331,-550.5,0.00032054,2]
[311058957,1704891124342,-13391.47,0.00032054,2]
[311058958,1704891124352,-1882.58,0.00032054,2]
[311058959,1704891124363,-1438.47,0.00032054,2]
[311058960,1704891124373,-500.0,0.00032054,2]
[311058961,1704891124383,-3391.89,0.00032054,2]
[311058962,1704891124393,-17056.02,0.00032054,2]
[311058963,1704891124405,-1223.46,0.00032054,2]
[311058964,1704891124416,-1903.64,0.00032054,2]
[311058965,1704891124427,-535.17,0.00032054,2]
[311058966,1704891124438,-500.0,0.00032054,2]
[311058967,1704891124449,-1447.74,0.00032054,2]
[311058968,1704891124460,-903.74,0.00032054,2]
[311058969,1704891124471,-500.0,0.00032054,2]
[311058970,1704891124481,-1181.32,0.00032054,2]
[311058971,1704891124491,-897.9,0.00032054,2]
[311058972,1704891124502,-500.0,0.00032054,2]
[311058973,1704891124512,-3416.68,0.00032054,2]
[311058974,1704891124523,-500.0,0.00032054,2]
[311058975,1704891124533,-2765.04,0.00032054,2]
[311058976,1704891124544,-1323.99,0.00032054,2]
[311058977,1704891124554,-605.66,0.00032054,2]
[311058978,1704891124564,-500.0,0.00032054,2]
[311058979,1704891124575,-656.06,0.00032054,2]
[311058980,1704891124585,-1240.59,0.00032054,2]
[311058981,1704891124595,-1858.38,0.00032054,2]
[311058982,1704891124605,-1066.0,0.00032054,2]
[311058983,1704891124614,-3383.46,0.00032054,2]
[311058984,1704891124624,-556.19,0.00032054,2]
[311058985,1704891124634,-1414.02,0.00032054,2]
[311058986,1704891124644,-1721.84,0.00032054,2]
[311058987,1704891124656,-506.73,0.00032054,2]
[311058988,1704891124666,-6948.27,0.00032054,2]
[311058989,1704891124676,-500.0,0.00032054,2]
[311058990,1704891124686,-787.87,0.00032054,2]
[311058991,1704891124696,-875.41,0.00032054,2]
[311058992,1704891124706,-905.55,0.00032054,2]
[311058993,1704891124716,-1113.97,0.00032054,2]
[311058994,1704891124725,-1850.44,0.00032054,2]
[311058995,1704891124735,-2699.57,0.00032054,2]
[311058996,1704891124745,-13325.5,0.00032054,2]
[311058997,1704891124755,-622.97,0.00032054,2]
[311058998,1704891124764,-975.55,0.00032054,2]
[311058999,1704891124774,-816.51,0.00032054,2]
[311059000,1704891124783,-602.85,0.00032054,2]
[311059001,1704891124793,-1571.82,0.00032054,2]
[311059002,1704891124803,-500.0,0.00032054,2]
[311059003,1704891124813,-1902.92,0.00032054,2]
[311059004,1704891124823,-1172.85,0.00032054,2]
[311059005,1704891124833,-1103.19,0.00032054,2]
[311059006,1704891124843,-1029.72,0.00032054,2]
[311059007,1704891124853,-551.04,0.00032054,2]
[311059008,1704891124864,-500.0,0.00032054,2]
[311059009,1704891124874,-719.09,0.00032054,2]
[311059010,1704891124884,-6582.51,0.00032054,2]
[311059011,1704891124894,-500.0,0.00032054,2]
[311059012,1704891124906,-816.66,0.00032054,2]
[311059013,1704891124915,-4042.49,0.00032054,2]
[311059014,1704891124927,-711.14,0.00032054,2]
[311059015,1704891124936,-500.0,0.00032054,2]
[311059016,1704891124946,-750.11,0.00032054,2]
[311059017,1704891124956,-500.0,0.00032054,2]
[311059018,1704891124966,-3983.8,0.00032054,2]
[311059019,1704891124975,-548.8,0.00032054,2]
[311059020,1704891124984,-541.81,0.00032054,2]
[311059021,1704891124993,-1032.31,0.00032054,2]
[311059022,1704891125002,-3506.94,0.00032054,2]
[311059023,1704891125012,-1408.06,0.00032054,2]
[311059024,1704891125023,-1081.29,0.00032054,2]
[311059025,1704891125033,-1527.61,0.00032054,2]
[311059026,1704891125043,-8785.85,0.00032054,2]
[311059027,1704891125053,-660.7,0.00032054,2]
[311059028,1704891125063,-1142.75,0.00032054,2]
[311059029,1704891125073,-2858.46,0.00032054,2]
[311059030,1704891125083,-2768.41,0.00032054,2]
[311059031,1704891125094,-4131.39,0.00032054,2]
[311059032,1704891125105,-2292.41,0.00032054,2]
[311059033,1704891125115,-746.91,0.00032054,2]
[311059034,1704891125125,-2876.26,0.00032054,2]
[311059035,1704891125136,-2634.97,0.00032054,2]
[311059036,1704891125146,-2170.96,0.00032054,2]
[311059037,1704891125157,-1039.47,0.00032054,2]
[311059038,1704891125167,-1716.45,0.00032054,2]
[311059039,1704891125177,-602.26,0.00032054,2]
[311059040,1704891125187,-3670.86,0.00032054,2]
[311059041,1704891125197,-500.0,0.00032054,2]
[311059042,1704891125207,-500.0,0.00032054,2]
[311059043,1704891125217,-380.65012792,0.00032054,2]
[311059044,1704891125227,-500.0,0.00032054,2]
[311059045,1704891125238,-614.41,0.00032054,2]
[311059046,1704891125248,-2195.0,0.00032054,2]
[311059047,1704891125259,-1673.5,0.00032054,2]
[311059048,1704891125270,-500.0,0.00032054,2]
[311059049,1704891125281,-2390.42,0.00032054,2]
[311059050,1704891125292,-5390.38,0.00032054,2]
[311059051,1704891125302,-3651.48,0.00032054,2]
[311059052,1704891125312,-38163.08,0.00032054,2]
[311059053,1704891125324,-1000.0,0.00032054,2]
[311059054,1704891125336,-500.0,0.00032054,2]
[311059055,1704891125346,-1305.31,0.00032054,2]
[311059056,1704891125356,-1396.89,0.00032054,2]
[311059057,1704891125366,-1467.77,0.00032054,2]
[311059058,1704891125377,-500.0,0.00032054,2]
[311059059,1704891125388,-1697.53,0.00032054,2]
[311059060,1704891125399,-14627.59,0.00032054,2]
[311059061,1704891125410,-2605.66,0.00032054,2]
[311059062,1704891125422,-500.0,0.00032054,2]
[311059063,1704891125432,-1698.7,0.00032054,2]
[311059064,1704891125443,-601.21,0.00032054,2]
[311059065,1704891125454,-3381.31,0.00032054,2]
[311059066,1704891125465,-3094.77,0.00032054,2]
[311059067,1704891125475,-999.48,0.00032054,2]
[311059068,1704891125485,-607.81,0.00032054,2]
[311059069,1704891125495,-30990.15,0.00032054,2]
[311059070,1704891125507,-2892.8,0.00032054,2]
[311059071,1704891125517,-565.02371115,0.00032054,2]
[311059072,1704891125528,-5290.12,0.00032054,2]
[311059073,1704891125538,-500.0,0.00032054,2]
[311059074,1704891125548,-1578.38,0.00032054,2]
[311059075,1704891125558,-2017.0,0.00032054,2]
[311059076,1704891125569,-840.86,0.00032054,2]
[311059077,1704891125579,-500.0,0.00032054,2]
[311059078,1704891125589,-4827.58,0.00032054,2]
[311059079,1704891125600,-3994.86,0.00032054,2]
[311059080,1704891125610,-1048.25,0.00032054,2]
[311059081,1704891125621,-642.94,0.00032054,2]
[311059082,1704891125637,-1904.14,0.00032054,2]
[311059083,1704891125649,-500.0,0.00032054,2]
[311059084,1704891125659,-1424.2,0.00032054,2]
[311059085,1704891125670,-539.92,0.00032054,2]
[311059086,1704891125680,-1050.78,0.00032054,2]
[311059087,1704891125691,-2602.05,0.00032054,2]
[311059088,1704891125701,-500.0,0.00032054,2]
[311059089,1704891125711,-5503.03,0.00032054,2]
[311059090,1704891125721,-1522.78,0.00032054,2]
[311059091,1704891125732,-2260.26,0.00032054,2]
[311059092,1704891125742,-821.97,0.00032054,2]
[311059093,1704891125752,-753.71,0.00032054,2]
[311059094,1704891125762,-1838.58,0.00032054,2]
[311059095,1704891125772,-901.27,0.00032054,2]
[311059096,1704891125782,-782.96,0.00032054,2]
[311059097,1704891125793,-6384.72,0.00032054,2]
[311059098,1704891125803,-627.49,0.00032054,2]
[311059099,1704891125813,-2196.77,0.00032054,2]
[311059100,1704891125824,-599.02,0.00032054,2]
[311059101,1704891125834,-500.0,0.00032054,2]
[311059102,1704891125844,-632.63,0.00032054,2]
[311059103,1704891125854,-864.41,0.00032054,2]
[311059104,1704891125864,-1516.0,0.00032054,2]
[311059105,1704891125874,-2505.88,0.00032054,2]
[311059106,1704891125884,-6045.31,0.00032054,2]
[311059107,1704891125895,-3365.53,0.00032054,2]
[311059108,1704891125908,-720.09,0.00032054,2]
[311059109,1704891125918,-1765.01,0.00032054,2]
[311059110,1704891125928,-500.0,0.00032054,2]
[311059111,1704891125938,-870.91,0.00032054,2]
[311059112,1704891125949,-927.81,0.00032054,2]
[311059113,1704891125960,-2120.01,0.00032054,2]
[311059114,1704891125970,-767.25,0.00032054,2]
[311059115,1704891125980,-868.01,0.00032054,2]
[311059116,1704891125991,-1570.4,0.00032054,2]
[311059117,1704891126001,-500.0,0.00032054,2]
[311059118,1704891126011,-2584.72,0.00032054,2]
[311059119,1704891126022,-5200.93,0.00032054,2]
[311059120,1704891126032,-1450.1,0.00032054,2]
[311059121,1704891126043,-1551.81,0.00032054,2]
[311059122,1704891126053,-602.13,0.00032054,2]
[311059123,1704891126063,-754.64,0.00032054,2]
[311059124,1704891126074,-3512.62,0.00032054,2]
[311059125,1704891126084,-500.0,0.00032054,2]
[311059126,1704891126094,-500.0,0.00032054,2]
[311059127,1704891126103,-1650.34,0.00032054,2]
[311059128,1704891126113,-813.75,0.00032054,2]
[311059129,1704891126123,-2261.23,0.00032054,2]
[311059130,1704891126134,-7021.11,0.00032054,2]
[311059131,1704891126144,-4708.93,0.00032054,2]
[311059132,1704891126157,-2547.75,0.00032054,2]
[311059133,1704891126166,-500.0,0.00032056,2]
[311059134,1704891126176,-160.22,0.00032141,2]
[311059135,1704891126186,-206.0,0.00032178,6]
[311059136,1704891126196,-169.34,0.00032179,2]
[311059137,1704891126206,-247.42,0.00032243,2]
[311059138,1704891126216,-1857.32602045,0.00032259,2]
[311059139,1704891126225,-200.0,0.00032259,2]
[311059140,1704891126235,-200.0,0.00032259,2]
[311059141,1704891126246,-200.0,0.00032259,2]
[311059142,1704891126256,-582.0,0.00032273,2]
[311059143,1704891126267,-151.0,0.00032302,120]
[311059144,1704891126277,-150.0,0.0003232,2]
[311059145,1704891126287,-627.64,0.0003232,2]
[311059146,1704891126297,-150.0,0.0003232,2]
[311059147,1704891126306,-417.61,0.0003232,2]
[311059148,1704891126316,-150.0,0.0003232,2]
[311059149,1704891126330,-417.61,0.0003232,2]
[311059150,1704891126340,-416.95,0.0003232,2]
[311059151,1704891126350,-370.0,0.0003232,2]
[311059152,1704891126361,-150.0,0.0003232,2]
[311059153,1704891126372,-150.0,0.0003232,2]
[311059154,1704891126382,-150.0,0.0003232,2]
[311059155,1704891126392,-150.0,0.0003232,2]
[311059156,1704891126404,-150.0,0.00032327,2]
[311059157,1704891126415,-1305.2,0.00032328,2]
[311059158,1704891126427,-1164.78,0.00032328,2]
[311059159,1704891126437,-632.81,0.00032328,2]
[311059160,1704891126448,-500.0,0.00032328,2]
[311059161,1704891126457,-691.12,0.00032328,2]
[311059162,1704891126468,-610.62,0.00032328,2]
[311059163,1704891126478,-570.49,0.00032328,2]
[311059164,1704891126488,-648.06,0.00032328,2]
[311059165,1704891126499,-528.22,0.00032328,2]
[311059166,1704891126509,-500.0,0.00032328,2]
[311059167,1704891126519,-613.28,0.00032328,2]
[311059168,1704891126530,-500.0,0.00032328,2]
[311059169,1704891126540,-500.0,0.00032328,2]
[311059170,1704891126550,-606.62,0.00032328,2]
[311059171,1704891126560,-1296.75,0.00032328,2]
[311059172,1704891126570,-500.0,0.00032328,2]
[311059173,1704891126580,-549.61,0.00032328,2]
[311059174,1704891126590,-539.9,0.00032328,2]
[311059175,1704891126601,-500.0,0.00032328,2]
[311059176,1704891126611,-500.0,0.00032328,2]
[311059177,1704891126622,-554.24,0.00032328,2]
[311059178,1704891126632,-560.90763617,0.00032328,2]
[311059179,1704891126642,-604.42,0.00032328,2]
[311059180,1704891126655,-500.0,0.00032328,2]
[311059181,1704891126665,-597.45,0.00032328,2]
[311059182,1704891126674,-500.0,0.00032328,2]
[311059183,1704891126683,-500.0,0.00032328,2]
[311059184,1704891126692,-715.45,0.00032328,2]
[311059185,1704891126702,-731.09,0.00032328,2]
[311059186,1704891126711,-500.0,0.00032328,2]
[311059187,1704891126720,-767.17,0.00032328,2]
[311059188,1704891126730,-1110.47,0.00032328,2]
[311059189,1704891126739,-500.0,0.00032328,2]
[311059190,1704891126983,-500.0,0.00032328,2]
[311059191,1704891126993,-500.0,0.00032328,2]
[311059192,1704891127002,-500.0,0.00032328,2]
[311059193,1704891127011,-914.12,0.00032328,2]
[311059194,1704891127020,-512.14082617,0.00032328,2]
[311059195,1704891127030,-189.50881532,0.00032328,2]
[311059196,1704891127039,-337.97400874,0.00032328,2]
[311059197,1704891127049,-500.0,0.00032328,2]
[311059198,1704891127059,-500.0,0.00032328,2]
[311059199,1704891127069,-843.45,0.00032328,2]
[311059200,1704891127079,-540.71,0.00032328,2]
[311059201,1704891127089,-500.0,0.00032328,2]
[311059202,1704891127100,-833.64,0.00032328,2]
[311059203,1704891127111,-517.87912477,0.00032328,2]
[311059204,1704891127121,-500.0,0.00032328,2]
[311059205,1704891127132,-919.36,0.00032328,2]
[311059206,1704891127143,-478.58026165,0.00032328,2]
[311059207,1704891127161,-500.0,0.00032328,2]
[311059208,1704891127172,-500.0,0.00032328,2]
[311059209,1704891127183,-780.81,0.00032328,4]
[311059210,1704891127193,-673.2,0.00032328,2]
[311059211,1704891127204,-549.17,0.00032328,2]
[311059212,1704891127214,-500.0,0.00032328,2]
[311059213,1704891127225,-592.78,0.00032328,10]
[311059214,1704891127235,-929.48,0.00032328,2]
[311059215,1704891127245,-500.0,0.00032328,2]
[311059216,1704891127256,-783.37,0.00032328,2]
[311059217,1704891127266,-500.0,0.00032328,2]
[311059218,1704891127276,-526.95,0.00032328,2]
[311059219,1704891127286,-500.0,0.00032328,2]
[311059220,1704891127295,-718.34,0.00032328,2]
[311059221,1704891127305,-796.39,0.00032328,2]
[311059222,1704891127323,-500.0,0.00032328,2]
[311059223,1704891127333,-516.97,0.00032328,2]
[311059224,1704891127342,-603.93,0.00032328,2]
[311059225,1704891127352,-953.36,0.00032328,2]
[311059226,1704891127362,-595.36,0.00032328,2]
[311059227,1704891127372,-999.87,0.00032328,2]
[311059228,1704891127381,-799.61,0.00032328,2]
[311059229,1704891127390,-500.0,0.00032328,2]
[311059230,1704891127401,-679.43,0.00032328,2]
[311059231,1704891127412,-545.66,0.00032328,2]
[311059232,1704891127421,-911.61,0.00032328,2]
[311059233,1704891127431,-608.6,0.00032328,2]
[311059234,1704891127441,-183.90414459,0.00032328,2]
[311059235,1704891127451,-500.0,0.00032328,2]
[311059236,1704891127461,-500.0,0.00032328,2]
[311059237,1704891127471,-528.0,0.00032328,2]
[311059238,1704891127481,-717.61,0.00032328,2]
[311059239,1704891127490,-668.27,0.00032328,2]
[311059240,1704891127500,-500.0,0.00032328,2]
[311059241,1704891127509,-922.19,0.00032328,2]
[311059242,1704891127520,-300.0,0.00032328,2]
[311059243,1704891127530,-173.26994213,0.00032328,2]
[311059244,1704891127540,-500.0,0.00032328,2]
[311059245,1704891127551,-500.0,0.00032328,2]
[311059246,1704891127562,-500.0,0.00032328,2]
[311059247,1704891127571,-1150.48,0.00032328,2]
[311059248,1704891127581,-500.0,0.00032328,2]
[311059249,1704891127591,-500.0,0.00032328,2]
[311059250,1704891127601,-500.0,0.00032328,2]
[311059251,1704891127611,-856.23,0.00032328,2]
[311059252,1704891127621,-500.0,0.00032328,2]
[311059253,1704891127630,-943.83,0.00032328,2]
[311059254,1704891127640,-500.0,0.00032328,2]
[311059255,1704891127652,-677.16,0.00032328,2]
[311059256,1704891127661,-1357.7,0.00032328,2]
[311059257,1704891127670,-819.95,0.00032328,2]
[311059258,1704891127680,-944.54,0.00032328,2]
[311059259,1704891127689,-613.7,0.00032328,2]
[311059260,1704891127699,-845.23,0.00032328,2]
[311059261,1704891127708,-1144.78,0.00032328,2]
[311059262,1704891127717,-500.0,0.00032328,2]
[311059263,1704891127727,-572.57,0.00032328,2]
[311059264,1704891127736,-523.04,0.00032328,2]
[311059265,1704891127745,-500.0,0.00032328,2]
[311059266,1704891127754,-981.88,0.00032328,2]
[311059267,1704891127763,-500.0,0.00032328,2]
[311059268,1704891127772,-500.0,0.00032328,2]
[311059269,1704891127781,-500.0,0.00032328,2]
[311059270,1704891127791,-500.0,0.00032328,2]
[311059271,1704891127800,-1009.3,0.00032328,2]
[311059272,1704891127809,-500.0,0.00032328,2]
[311059273,1704891127819,-804.49,0.00032328,2]
[311059274,1704891127828,-500.0,0.00032328,2]
[311059275,1704891127837,-679.35,0.00032328,2]
[311059276,1704891127846,-626.97,0.00032328,2]
[311059277,1704891127854,-688.65,0.00032328,2]
[311059278,1704891127864,-1228.41,0.00032328,2]
[311059279,1704891127873,-835.39,0.00032328,2]
[311059280,1704891127882,-500.0,0.00032328,2]
[311059281,1704891127892,-567.03,0.00032328,2]
[311059282,1704891127903,-664.11,0.00032328,2]
[311059283,1704891127913,-699.18,0.00032328,2]
[311059284,1704891127922,-729.83,0.00032328,2]
[311059285,1704891127931,-500.0,0.00032328,2]
[311059286,1704891127942,-574.64,0.00032328,2]
[311059287,1704891127951,-847.62,0.00032328,2]
[311059288,1704891127961,-500.0,0.00032328,2]